[Event "24th Mediterranean Flower 2024"]
[Site "Rijeka"]
[Date "2024.03.04"]
[Round "2.4"]
[White "Zagorac, Lara"]
[Black "Berke, Ana"]
[Result "0-1"]
[ECO "D02"]
[WhiteElo "1894"]
[BlackElo "2066"]
[Annotator "RC"]
[PlyCount "98"]
[EventDate "2024.03.04"]
[EventType "tourn"]
[EventCountry "CRO"]
[SourceTitle "playchess.com"]
[Source "ChessBase"]
[SourceQuality "1"]
[TimeControl "5400+30"]

1. d4 {[%emt 0:00:03]} d5 {[%emt 0:00:05]} 2. Nf3 {[%emt 0:00:09]} Nf6 {[%emt 0:00:42]} 3. g3 {[%emt 0:00:50]} c5 {[%emt 0:00:18]} 4. Bg2 {[%emt 0:00:57]} cxd4 {[%emt 0:04:49]} 5. O-O {[%emt 0:00:21]} Nc6 {[%emt 0:06:28]} 6. Nxd4 {[%emt 0:01:47]} e5 {[%emt 0:01:49]} 7. Nxc6 {[%emt 0:07:19]} bxc6 {[%emt 0:00:06]} 8. c4 {[%emt 0:00:24]} Be6 {[%emt 0:02:51]} 9. Nc3 {[%emt 0:02:59]} Be7 {[%emt 0:06:53]} 10. Bg5 {[%emt 0:01:49]} e4 {[%emt 0:02:17]} 11. cxd5 {[%emt 0:05:32]} cxd5 {[%emt 0:02:17]} 12. Be3 {[%emt 0:00:26]} O-O {[%emt 0:02:18]} 13. Nb5 {[%emt 0:03:15]} Rb8 {[%emt 0:06:22]} 14. Nxa7 {[%emt 0:09:30]} Qd7 {[%emt 0:01:29]} 15. a4 {[%emt 0:07:08]} Rxb2 {[%emt 0:01:58]} 16. Bd4 {[%emt 0:02:45]} Rb4 {[%emt 0:02:43]} 17. Nb5 {[%emt 0:02:01]} Rc8 {[%emt 0:03:25]} 18. Rb1 {[%emt 0:05:55]} Rbc4 {[%emt 0:02:15]} 19. Qb3 {[%emt 0:05:33]} Bg4 {[%emt 0:04:16]} 20. Qa2 {[%emt 0:06:29]} Ra8 {[%emt 0:03:13]} 21. a5 {[%emt 0:04:11]} Bb4 {[%emt 0:03:45]} 22. Bxf6 {[%emt 0:04:39]} gxf6 {[%emt 0:03:24]} 23. Rxb4 {[%emt 0:05:51]} Rxb4 {[%emt 0:02:51]} 24. Nc3 {[%emt 0:00:23]} Be6 {[%emt 0:03:07]} 25. Qd2 {[%emt 0:00:24]} Rab8 {[%emt 0:08:13]} 26. Qf4 {[%emt 0:00:43]} Kg7 {[%emt 0:01:51]} 27. e3 {[%emt 0:00:32]} Rb2 {[%emt 0:02:24]} 28. f3 {[%emt 0:03:40]} Bh3 {[%emt 0:05:10]} 29. Bxh3 {[%emt 0:02:23]} Qxh3 {[%emt 0:00:16]} 30. Qg4+ {[%emt 0:00:27]} Qxg4 {[%emt 0:00:07]} 31. fxg4 {[%emt 0:00:06]} Rd2 {[%emt 0:01:51]} 32. a6 {[%emt 0:01:33]} Rbb2 {[%emt 0:04:51]} 33. Ra1 {[%emt 0:01:58]} Rg2+ {[%emt 0:00:16]} 34. Kh1 {[%emt 0:01:13]} Rxh2+ {[%emt 0:00:11]} 35. Kg1 {[%emt 0:00:05]} Rbg2+ {[%emt 0:00:43]} 36. Kf1 {[%emt 0:00:06]} Rh1+ {[%emt 0:00:58]} 37. Kxg2 {[%emt 0:00:08]} Rxa1 {[%emt 0:00:02]} 38. Nxd5 {[%emt 0:00:13]} Rxa6 {[%emt 0:00:08]} 39. Nc3 {[%emt 0:00:16]} Re6 {[%emt 0:00:40]} 40. Kh3 {[%emt 0:00:22]} Re5 {[%emt 0:00:19]} 41. Kh4 {[%emt 0:00:14]} Kf8 {[%emt 0:00:15]} 42. Ne2 {[%emt 0:00:19]} Rd5 {[%emt 0:02:33]} 43. Nc3 {[%emt 0:00:11]} Re5 {[%emt 0:00:04]} 44. Ne2 {[%emt 0:00:05]} Ke7 {[%emt 0:01:47]} 45. Nf4 {[%emt 0:00:42]} Ra5 {[%emt 0:00:12]} 46. Ng2 {[%emt 0:00:22]} Ra2 {[%emt 0:00:47]} 47. Kh3 {[%emt 0:00:21]} Kd6 {[%emt 0:00:31]} 48. Nf4 {[%emt 0:00:09]} Ke5 {[%emt 0:00:18]} 49. Nh5 {[%emt 0:00:15]} Re2 {[%emt 0:00:19]} 0-1

[Event "24th Mediterranean Flower 2024"]
[Site "Rijeka"]
[Date "2024.03.04"]
[Round "2.5"]
[White "Urh, Zala"]
[Black "Hnatyshyn, Anastasiia"]
[Result "1-0"]
[ECO "D02"]
[WhiteElo "2287"]
[BlackElo "2178"]
[Annotator "TA"]
[PlyCount "108"]
[EventDate "2024.03.04"]
[EventType "tourn"]
[EventCountry "CRO"]
[SourceTitle "playchess.com"]
[Source "ChessBase"]
[SourceQuality "1"]
[TimeControl "5400+30"]

{[%evp 9,108,0,0,0,0,0,0,-10,14,13,55,31,110,63,129,52,135,117,100,36,25,23,50,57,51,56,45,43,37,28,39,27,35,47,136,112,214,11,12,16,18,16,64,64,78,82,72,81,120,117,101,105,226,193,259,249,227,230,248,264,250,235,241,246,266,218,264,206,258,274,240,197,252,241,206,202,297,273,337,301,316,334,481,447,610,493,827,793,747,682,945,924,1385,1346,1297,1250,29973,29974,29974,29974,6095]} 1. d4 {[%emt 0:00:02]} Nf6 {[%emt 0:00:10]} 2. Nf3 {[%emt 0:00:12]} d5 {[%emt 0:00:17]} 3. Bf4 {[%emt 0:00:06]} c5 {[%emt 0:00:40]} 4. e3 {[%emt 0:00:04]} Nc6 {[%emt 0:00:15]} 5. Nbd2 {[%emt 0:00:13]} Qb6 {[%emt 0:02:42]} 6. dxc5 {[%emt 0:00:25]} Qxb2 {[%emt 0:00:51]} 7. Rb1 {[%emt 0:00:57]} Qc3 {[%emt 0:01:52][%cal Oa7a6]} 8. Bb5 {[%emt 0:00:20] Die Stellung ist ausgeglichen.} Qxc5 {[%emt 0:05:52]} 9. c4 {[%emt 0:07:39]} a6 {[%emt 0:08:04]} (9... dxc4 {ist vielschichtiger.} 10. Nxc4 Bf5 11. Nce5 Bxb1 12. Qxb1 a6) 10. Bxc6+ {[%emt 0:04:18]} bxc6 {[%emt 0:00:31]} (10... Qxc6 $14 11. O-O Bg4 (11... dxc4 12. Ne5 $16)) 11. Qa4 {[%emt 0:10:09]} (11. O-O $16) 11... Bd7 {[%emt 0:06:32]} ({Vorzuziehen ist} 11... Bf5 $14 12. Rc1 Bd7) 12. Rb7 {[%emt 0:16:51]} ({Besser ist} 12. O-O $16) 12... e6 {[%emt 0:07:35]} (12... Bc8 $14 13. Rb2 (13. Rc7 dxc4 14. e4 e5 $11) 13... e6) 13. Ne5 {[%emt 0:17:28] Weiß hat aktiveres Spiel.} Qa3 {[%emt 0:16:18]} 14. Qxa3 {[%emt 0:07:07]} (14. Qc2 $16 {0-0 ist eine echte Drohung.} Bb4 15. O-O) 14... Bxa3 $14 {[%emt 0:00:06]} 15. Ke2 {[%emt 0:00:05]} Rd8 {[%emt 0:06:15]} 16. Rhb1 {[%emt 0:09:21]} O-O {[%emt 0:04:06]} 17. Rc7 {[%emt 0:01:40]} a5 {[%emt 0:05:14]} 18. Nxd7 {[%emt 0:09:37]} Rxd7 {[%emt 0:04:35]} 19. Rxc6 {[%emt 0:00:15]} Bb4 {[%emt 0:02:30]} 20. c5 {[%emt 0:04:08]} Re8 {[%emt 0:04:04]} 21. Be5 {[%emt 0:07:52]} Ng4 {[%emt 0:05:22]} (21... Rdd8 $14) 22. Nf3 $1 $16 {[%emt 0:00:10]} Rdd8 {[%emt 0:03:17]} (22... f6 $16) 23. Rc1 $2 {[%emt 0:01:56]} ({Günstiger ist} 23. Bc7 $18 Rd7 24. Nd4) 23... Rc8 $11 {[%emt 0:08:35]} 24. Rxc8 {[%emt 0:00:26]} Rxc8 {[%emt 0:00:04]} 25. c6 {[%emt 0:00:53] Droht Bg3 und aus.} Kf8 {[%emt 0:01:27]} (25... Nxe5 $11 26. Nxe5 h5) 26. Bb2 $36 {[%emt 0:00:28][%mdl 2048] Weiss drückt.} Bd6 {[%emt 0:01:52][%cal Oa5a4]} 27. h3 {[%emt 0:00:32]} Nf6 {[%emt 0:00:09]} 28. Nd4 {[%emt 0:00:36]} Rb8 {[%emt 0:02:33] Wehrt Nb5 ab} 29. Rc2 {[%emt 0:00:05]} ({Aber nicht} 29. c7 $2 Rxb2+ 30. Kd3 Bxc7 (30... Rxf2 $2 {verliert.} 31. c8=Q+ Ne8 32. Qd7 $18) 31. Rxc7 Ne4 $19 (31... Rxf2 $2 32. Rc2 $19) (31... Rxa2 32. Rc8+ Ke7 33. Rc7+ Nd7 34. Nc2 $15)) 29... Ne8 {[%emt 0:00:13]} 30. a4 $1 {[%emt 0:00:51]} Bb4 {[%emt 0:01:40] Danach kann Schwarz die Partie nicht mehr halten.} (30... g5 $16 31. Nb5 Ke7) 31. Nb5 $18 {[%emt 0:00:24]} f6 {[%emt 0:01:03] Gegen Be5 gerichtet.} (31... Ke7 {ist eine bessere Verteidigung.} 32. Be5 Ra8) 32. Bd4 {[%emt 0:00:31] Schwarz muss nun c7 beachten.} Ke7 {[%emt 0:01:12]} 33. c7 {[%emt 0:00:16]} Rc8 {[%emt 0:00:05] [#]} 34. Bb6 $1 {[%emt 0:00:10] Und jetzt Na7 wäre schön.} Kd7 {[%emt 0:00:47]} 35. Na7 {[%emt 0:00:18]} Rxc7 {[%emt 0:00:14]} 36. Bxc7 {[%emt 0:00:06]} Nxc7 {[%emt 0:00:03][%mdl 4096] Endspiel. KRN-KBN} 37. Nc6 {[%emt 0:01:00]} Na6 {[%emt 0:00:36]} 38. Nxb4 {[%emt 0:00:48]} Nxb4 {[%emt 0:01:00] KR-KN} 39. Rc5 {[%emt 0:00:22]} Nc6 {[%emt 0:00:10]} 40. Kd2 {[%emt 0:00:28]} Kd6 {[%emt 0:01:06]} (40... h5 $142 41. e4 Kd6) 41. Rb5 {[%emt 0:00:06]} Kc7 {[%emt 0:00:13]} 42. Kc3 {[%emt 0:00:23]} g6 {[%emt 0:00:44]} (42... Na7 $142 43. Rb2 (43. Rxa5 Kb6 $18) 43... h5) 43. f4 {[%emt 0:00:29]} h5 {[%emt 0:00:25]} 44. g4 {[%emt 0:00:47]} hxg4 {[%emt 0:00:20]} 45. hxg4 {[%emt 0:00:03][%cal Bh3g4,Bg4g5][%mdl 32]} f5 {[%emt 0:00:47]} (45... Kd6 $142 46. Rb7 e5) 46. g5 {[%emt 0:00:53]} Kc8 {[%emt 0:00:31]} 47. Rb1 {[%emt 0:00:15]} Kc7 {[%emt 0:00:12]} (47... Kd7 $142 48. Rb7+ Kd6) 48. Rh1 {[%emt 0:00:27]} Kd6 {[%emt 0:00:09]} 49. Rh8 {[%emt 0:01:39]} Kd7 {[%emt 0:00:35]} 50. Rh7+ {[%emt 0:00:28]} Kd6 {[%emt 0:00:15]} 51. Rg7 {[%emt 0:00:18]} Ne7 {[%emt 0:00:11]} 52. Kd3 {[%emt 0:00:10]} Kd7 {[%emt 0:01:10]} 53. Kd4 {[%emt 0:00:05]} Kd6 {[%emt 0:00:06] [#]} 54. Rxe7 $1 {[%emt 0:01:27][%mdl 512]} Kxe7 {[%emt 0:01:55] Gewichteter Fehlerwert: Weiß=0.15 (sehr präzise) /Schwarz=0.52.  Gewinn verpasst:   	Weiß=1     	---        Fehler:       	Weiß=3     	Schwarz=12    Ungenau:       	---       	Schwarz=4     OK:         	Weiß=21    	Schwarz=15    Bester:       	Weiß=3     	Schwarz=1     Stark:        	Weiß=3     	---} 1-0

[Event "24th Mediterranean Flower 2024"]
[Site "Rijeka"]
[Date "2024.03.04"]
[Round "3.1"]
[White "Hnatyshyn, Anastasiia"]
[Black "Skuhala, Barbara"]
[Result "0-1"]
[ECO "B90"]
[WhiteElo "2178"]
[BlackElo "2188"]
[Annotator "RC"]
[PlyCount "74"]
[EventDate "2024.03.04"]
[EventType "tourn"]
[EventCountry "CRO"]
[SourceTitle "playchess.com"]
[Source "ChessBase"]
[SourceQuality "1"]
[TimeControl "5400+30"]

1. e4 {[%emt 0:00:04]} c5 {[%emt 0:00:06]} 2. Nf3 {[%emt 0:00:04]} d6 {[%emt 0:00:06]} 3. d4 {[%emt 0:00:05]} cxd4 {[%emt 0:00:05]} 4. Nxd4 {[%emt 0:00:03]} Nf6 {[%emt 0:00:08]} 5. Nc3 {[%emt 0:00:04]} a6 {[%emt 0:00:06]} 6. h3 {[%emt 0:00:10]} e5 {[%emt 0:00:06]} 7. Nf3 {[%emt 0:00:04]} Be7 {[%emt 0:00:18]} 8. g4 {[%emt 0:00:06]} h6 {[%emt 0:00:40]} 9. Rg1 {[%emt 0:00:08]} b5 {[%emt 0:00:45]} 10. g5 {[%emt 0:00:22]} hxg5 {[%emt 0:00:36]} 11. Nxg5 {[%emt 0:00:06]} Bb7 {[%emt 0:00:33]} 12. Be3 {[%emt 0:00:56]} Qc7 {[%emt 0:00:33]} 13. a4 {[%emt 0:14:12]} b4 {[%emt 0:15:27]} 14. Nd5 {[%emt 0:00:27]} Nxd5 {[%emt 0:01:55]} 15. exd5 {[%emt 0:00:06]} Nd7 {[%emt 0:05:03]} 16. b3 {[%emt 0:09:50]} Nf6 {[%emt 0:04:54]} 17. Bc4 {[%emt 0:01:16]} Qa5 {[%emt 0:52:56]} 18. Qd2 {[%emt 0:11:49]} Bxd5 {[%emt 0:11:15]} 19. Bb6 {[%emt 0:03:46]} Qxb6 {[%emt 0:00:03]} 20. Bxd5 {[%emt 0:00:08]} Nxd5 {[%emt 0:00:24]} 21. Qxd5 {[%emt 0:00:10]} O-O {[%emt 0:01:56]} 22. O-O-O {[%emt 0:15:36]} Rac8 {[%emt 0:01:42]} 23. Qe4 {[%emt 0:14:13]} Bxg5+ {[%emt 0:00:22]} 24. Rxg5 {[%emt 0:00:07]} Qc6 {[%emt 0:00:21]} 25. Qf5 {[%emt 0:00:54]} f6 {[%emt 0:01:44]} 26. Rg3 {[%emt 0:00:51]} Rfe8 {[%emt 0:00:48]} 27. h4 {[%emt 0:06:22]} d5 {[%emt 0:00:36]} 28. h5 {[%emt 0:00:27]} e4 {[%emt 0:00:27]} 29. Rd2 {[%emt 0:09:38]} e3 {[%emt 0:00:20]} 30. fxe3 {[%emt 0:00:44]} Qc3 {[%emt 0:00:39]} 31. Rdg2 {[%emt 0:07:32]} Qa1+ {[%emt 0:00:09]} 32. Kd2 {[%emt 0:00:07]} Qc3+ {[%emt 0:00:14]} 33. Kd1 {[%emt 0:00:11]} Re7 {[%emt 0:00:42]} 34. h6 {[%emt 0:02:58]} g5 {[%emt 0:00:29]} 35. Rd2 {[%emt 0:01:52]} d4 {[%emt 0:00:32]} 36. Qxf6 {[%emt 0:01:59]} Qa1+ {[%emt 0:00:03]} 37. Ke2 {[%emt 0:00:09]} d3+ {[%emt 0:00:01]} 0-1

[Event "24th Mediterranean Flower 2024"]
[Site "Rijeka"]
[Date "2024.03.04"]
[Round "3.2"]
[White "Berke, Ana"]
[Black "Urh, Zala"]
[Result "0-1"]
[ECO "A35"]
[WhiteElo "2066"]
[BlackElo "2287"]
[Annotator "TA"]
[PlyCount "60"]
[EventDate "2024.03.04"]
[EventType "tourn"]
[EventCountry "CRO"]
[SourceTitle "playchess.com"]
[Source "ChessBase"]
[SourceQuality "1"]
[TimeControl "5400+30"]

{[%evp 17,60,22,14,-28,0,0,0,0,0,-19,-12,-23,-20,-11,-10,-9,-10,-20,-7,-35,-27,-34,-34,-30,-30,-89,-77,-83,-91,-89,-85,-225,-158,-401,-400,-796,-788,-784,-802,-800,-767,-972,-964,-931,-926]} 1. e4 {[%emt 0:00:11]} c6 {[%emt 0:00:12]} 2. d4 {[%emt 0:00:20]} d5 {[%emt 0:00:05]} 3. exd5 {[%emt 0:00:03]} cxd5 {[%emt 0:00:08]} 4. c4 {[%emt 0:00:03]} Nf6 {[%emt 0:00:49]} 5. Nc3 {[%emt 0:00:05]} g6 {[%emt 0:00:14]} 6. cxd5 {[%emt 0:00:55]} Nxd5 {[%emt 0:01:18]} 7. Qb3 {[%emt 0:01:12]} e6 {[%emt 0:02:24]} 8. Nf3 {[%emt 0:04:19]} Bg7 {[%emt 0:02:27]} 9. Bb5+ {[%emt 0:04:17]} Nc6 {[%emt 0:00:33]} 10. Ne5 {[%emt 0:02:47]} Bd7 {[%emt 0:08:53]} 11. Nxd7 {[%emt 0:09:49]} Qxd7 {[%emt 0:00:20]} 12. Nxd5 {[%emt 0:01:01] The position is equal.} exd5 {[%emt 0:04:32]} 13. Qe3+ {[%emt 0:03:53]} Qe6 {[%emt 0:06:04]} 14. O-O {[%emt 0:03:49]} O-O {[%emt 0:01:18]} 15. Qxe6 {[%emt 0:01:22]} fxe6 {[%emt 0:00:05]} 16. Bxc6 {[%emt 0:00:18]} bxc6 {[%emt 0:00:07]} 17. Be3 {[%emt 0:00:33]} Rab8 {[%emt 0:06:11]} 18. Rac1 {[%emt 0:01:14]} Rxb2 {[%emt 0:12:30]} 19. Rxc6 {[%emt 0:03:03]} Rxa2 {[%emt 0:00:09]} 20. Rxe6 {[%emt 0:01:20]} Ra8 {[%emt 0:02:24]} 21. h4 {[%emt 0:07:09]} (21. Rb1 $11 {keeps the balance.}) 21... a5 $17 {[%emt 0:02:07]} 22. Rb1 {[%emt 0:09:48]} a4 {[%emt 0:06:22] aiming for ...a3.} 23. Reb6 {[%emt 0:25:55] [#]} Rc2 $1 {[%emt 0:11:06] Black is more active.} 24. h5 {[%emt 0:02:31]} gxh5 {[%emt 0:02:12] Hoping for ...a3.} 25. Kh2 $2 {[%emt 0:01:23] Loses the game.} (25. Rb8+ $17 Rc8 26. R8b5) 25... a3 $19 {[%emt 0:01:45]} 26. Rb8+ {[%emt 0:02:20]} (26. Ra1 $142) 26... Rxb8 {[%emt 0:08:24] Black is clearly winning.} 27. Rxb8+ {[%emt 0:00:06] [#]} Kf7 $1 {[%emt 0:00:03]} 28. Ra8 {[%emt 0:00:20]} a2 {[%emt 0:00:11] Threatens to win with ...Bf8.} 29. Ra6 {[%emt 0:01:11]} Bf8 {[%emt 0:00:54]} 30. Ra4 {[%emt 0:10:15] [#]} Bb4 $1 {[%emt 0:01:06][%mdl 512] Weighted Error Value: White=0.66/Black=0.06 (flawless) .  Loses game:     	White=1     	---        Mistake:       	White=3     	---        Inaccurate:     	White=1     	Black=1      OK:         	White=8     	Black=7      Best:        	White=1     	Black=2      Strong:       	---       	Black=1} 0-1

[Event "24th Mediterranean Flower 2024"]
[Site "Rijeka"]
[Date "2024.03.04"]
[Round "3.3"]
[White "Mihaljevic, Eva"]
[Black "Zagorac, Lara"]
[Result "0-1"]
[ECO "B72"]
[WhiteElo "1946"]
[BlackElo "1894"]
[Annotator "RC"]
[PlyCount "114"]
[EventDate "2024.03.04"]
[EventType "tourn"]
[EventCountry "CRO"]
[SourceTitle "playchess.com"]
[Source "ChessBase"]
[SourceQuality "1"]
[TimeControl "5400+30"]

1. e4 {[%emt 0:00:01]} c5 {[%emt 0:00:07]} 2. Nf3 {[%emt 0:00:04]} d6 {[%emt 0:00:12]} 3. d4 {[%emt 0:00:06]} cxd4 {[%emt 0:00:07]} 4. Nxd4 {[%emt 0:00:03]} Nf6 {[%emt 0:00:12]} 5. Nc3 {[%emt 0:00:05]} g6 {[%emt 0:00:23]} 6. Be2 {[%emt 0:00:29]} Bg7 {[%emt 0:00:26]} 7. Be3 {[%emt 0:00:20]} Nc6 {[%emt 0:00:32]} 8. Qd2 {[%emt 0:01:37]} O-O {[%emt 0:00:27]} 9. O-O-O {[%emt 0:00:51]} Ng4 {[%emt 0:02:30]} 10. Bxg4 {[%emt 0:00:37]} Bxg4 {[%emt 0:00:09]} 11. f3 {[%emt 0:00:03]} Be6 {[%emt 0:00:28]} 12. Nxe6 {[%emt 0:02:39]} fxe6 {[%emt 0:00:18]} 13. Bh6 {[%emt 0:01:04]} Qb6 {[%emt 0:04:16]} 14. Bxg7 {[%emt 0:12:02]} Kxg7 {[%emt 0:00:52]} 15. h4 {[%emt 0:00:51]} Ne5 {[%emt 0:07:09]} 16. b3 {[%emt 0:04:33]} Qa5 {[%emt 0:09:26]} 17. h5 {[%emt 0:08:47]} Rfc8 {[%emt 0:13:42]} 18. Kb2 {[%emt 0:12:24]} Qb4 {[%emt 0:08:04]} 19. Qd4 {[%emt 0:02:00]} Qxd4 {[%emt 0:02:28]} 20. Rxd4 {[%emt 0:00:02]} a6 {[%emt 0:03:00]} 21. Ne2 {[%emt 0:13:55]} Rf8 {[%emt 0:04:27]} 22. Rdd1 {[%emt 0:03:36]} Nc6 {[%emt 0:03:03]} 23. hxg6 {[%emt 0:02:24]} hxg6 {[%emt 0:01:38]} 24. Rh4 {[%emt 0:00:39]} Rh8 {[%emt 0:03:28]} 25. Rdh1 {[%emt 0:02:31]} Rxh4 {[%emt 0:03:19]} 26. Rxh4 {[%emt 0:00:01]} g5 {[%emt 0:00:22]} 27. Rg4 {[%emt 0:08:09]} Kf6 {[%emt 0:02:16]} 28. Ng1 {[%emt 0:04:29]} Ne5 {[%emt 0:07:58]} 29. Rg3 {[%emt 0:00:18]} Rg8 {[%emt 0:01:51]} 30. Nh3 {[%emt 0:01:20]} Nf7 {[%emt 0:01:56]} 31. Nf2 {[%emt 0:01:40]} Ke5 {[%emt 0:06:03]} 32. Nh3 {[%emt 0:04:42]} g4 {[%emt 0:04:12]} 33. fxg4 {[%emt 0:02:22]} Kxe4 {[%emt 0:01:48]} 34. Nf2+ {[%emt 0:00:44]} Kd5 {[%emt 0:00:31]} 35. c4+ {[%emt 0:04:56]} Kc5 {[%emt 0:01:11]} 36. Kc3 {[%emt 0:00:39]} Ng5 {[%emt 0:01:00]} 37. Re3 {[%emt 0:01:14]} e5 {[%emt 0:01:16]} 38. Ne4+ {[%emt 0:02:44]} Kc6 {[%emt 0:00:14]} 39. Kd3 {[%emt 0:02:38]} Ne6 {[%emt 0:01:32]} 40. Rg3 {[%emt 0:00:51]} Ng5 {[%emt 0:00:42]} 41. Nc3 {[%emt 0:01:38]} e6 {[%emt 0:00:30]} 42. Ne4 {[%emt 0:00:27]} d5 {[%emt 0:02:14]} 43. cxd5+ {[%emt 0:00:36]} exd5 {[%emt 0:00:17]} 44. Nc3 {[%emt 0:00:37]} d4 {[%emt 0:00:40]} 45. Ne4 {[%emt 0:00:11]} Ne6 {[%emt 0:02:08]} 46. g5 {[%emt 0:00:50]} Rg6 {[%emt 0:00:43]} 47. Ke2 {[%emt 0:00:17]} Nc5 {[%emt 0:00:58]} 48. Nxc5 {[%emt 0:00:44]} Kxc5 {[%emt 0:00:04]} 49. Kf3 {[%emt 0:00:09]} Kd5 {[%emt 0:00:06]} 50. Kg4 {[%emt 0:00:12]} Ke4 {[%emt 0:00:33]} 51. Kh5 {[%emt 0:00:22]} Rg8 {[%emt 0:00:32]} 52. Rf3 {[%emt 0:00:46]} d3 {[%emt 0:00:14]} 53. g6 {[%emt 0:00:11]} d2 {[%emt 0:00:30]} 54. Rf1 {[%emt 0:00:23]} Ke3 {[%emt 0:00:40]} 55. Kh6 {[%emt 0:01:17]} Ke2 {[%emt 0:00:10]} 56. Ra1 {[%emt 0:00:41]} d1=Q {[%emt 0:00:47]} 57. Rxd1 {[%emt 0:00:06]} Kxd1 {[%emt 0:00:04]} 0-1

[Event "24th Mediterranean Flower 2024"]
[Site "Rijeka"]
[Date "2024.03.04"]
[Round "3.4"]
[White "Medic, Mirjana"]
[Black "Ivekovic, Tihana"]
[Result "1/2-1/2"]
[ECO "E11"]
[WhiteElo "2132"]
[BlackElo "2081"]
[Annotator "RC"]
[PlyCount "75"]
[EventDate "2024.03.04"]
[EventType "tourn"]
[EventCountry "CRO"]
[SourceTitle "playchess.com"]
[Source "ChessBase"]
[SourceQuality "1"]
[TimeControl "5400+30"]

1. d4 {[%emt 0:00:02]} Nf6 {[%emt 0:00:04]} 2. c4 {[%emt 0:00:10]} e6 {[%emt 0:00:04]} 3. Nc3 {[%emt 0:00:23]} Bb4 {[%emt 0:00:05]} 4. e3 {[%emt 0:00:09]} O-O {[%emt 0:01:34]} 5. Bd2 {[%emt 0:00:06]} c5 {[%emt 0:01:18]} 6. Nf3 {[%emt 0:00:39]} b6 {[%emt 0:01:49]} 7. dxc5 {[%emt 0:03:58]} Bxc5 {[%emt 0:00:09]} 8. Be2 {[%emt 0:01:56]} Bb7 {[%emt 0:00:29]} 9. O-O {[%emt 0:00:31]} Be7 {[%emt 0:05:04]} 10. Rc1 {[%emt 0:04:26]} d6 {[%emt 0:00:25]} 11. Nd4 {[%emt 0:13:10]} Nbd7 {[%emt 0:09:55]} 12. Bf3 {[%emt 0:00:47]} Bxf3 {[%emt 0:00:07]} 13. Qxf3 {[%emt 0:00:55]} Ne5 {[%emt 0:00:07]} 14. Qe2 {[%emt 0:00:17]} Rc8 {[%emt 0:01:03]} 15. b3 {[%emt 0:03:31]} Qc7 {[%emt 0:08:28]} 16. f4 {[%emt 0:07:51]} Nc6 {[%emt 0:01:57]} 17. Nxc6 {[%emt 0:01:53]} Qxc6 {[%emt 0:00:09]} 18. e4 {[%emt 0:00:12]} Qb7 {[%emt 0:02:37]} 19. f5 {[%emt 0:08:19]} exf5 {[%emt 0:14:37]} 20. Rxf5 {[%emt 0:01:39]} Rfe8 {[%emt 0:00:42]} 21. Qf3 {[%emt 0:02:41]} Bf8 {[%emt 0:01:10]} 22. Re1 {[%emt 0:01:17]} Re5 {[%emt 0:03:06]} 23. Bg5 {[%emt 0:12:45]} Nd7 {[%emt 0:09:51]} 24. Nd5 {[%emt 0:01:48]} Rce8 {[%emt 0:03:30]} 25. Rf1 {[%emt 0:02:03]} Rxf5 {[%emt 0:00:25]} 26. exf5 {[%emt 0:04:08]} Qc8 {[%emt 0:01:57]} 27. Be3 {[%emt 0:10:14]} Ne5 {[%emt 0:02:15]} 28. Qg3 {[%emt 0:00:29]} Kh8 {[%emt 0:00:36]} 29. Qh3 {[%emt 0:03:33]} Be7 {[%emt 0:03:46]} 30. Qg3 {[%emt 0:02:34]} Qd8 {[%emt 0:03:17]} 31. Rf4 {[%emt 0:01:20]} Bg5 {[%emt 0:00:24]} 32. Re4 {[%emt 0:00:14]} Bxe3+ {[%emt 0:00:34]} 33. Qxe3 {[%emt 0:00:11]} Qc8 {[%emt 0:02:36]} 34. f6 {[%emt 0:02:50]} Qc5 {[%emt 0:00:04]} 35. Qxc5 {[%emt 0:00:31]} bxc5 {[%emt 0:01:33]} 36. Nc7 {[%emt 0:00:57]} Rd8 {[%emt 0:08:57]} 37. fxg7+ {[%emt 0:00:58]} Kxg7 {[%emt 0:00:04]} 38. Nd5 {[%emt 0:10:03]} 1/2-1/2

[Event "24th Mediterranean Flower 2024"]
[Site "Rijeka"]
[Date "2024.03.04"]
[Round "3.5"]
[White "Hamdouchi, Adina-Maria"]
[Black "Radikovic, Anamarija"]
[Result "1/2-1/2"]
[ECO "E69"]
[WhiteElo "2213"]
[BlackElo "2039"]
[Annotator "RC"]
[PlyCount "60"]
[EventDate "2024.03.04"]
[EventType "tourn"]
[EventCountry "CRO"]
[SourceTitle "playchess.com"]
[Source "ChessBase"]
[SourceQuality "1"]
[TimeControl "5400+30"]

1. c4 {[%emt 0:00:04]} Nf6 {[%emt 0:00:05]} 2. g3 {[%emt 0:00:18]} g6 {[%emt 0:00:06]} 3. Bg2 {[%emt 0:02:54]} Bg7 {[%emt 0:00:07]} 4. Nc3 {[%emt 0:00:17]} O-O {[%emt 0:00:07]} 5. Nf3 {[%emt 0:03:29]} d6 {[%emt 0:00:10]} 6. d4 {[%emt 0:00:05]} Nbd7 {[%emt 0:03:08]} 7. O-O {[%emt 0:02:33]} e5 {[%emt 0:00:25]} 8. h3 {[%emt 0:00:23]} h6 {[%emt 0:04:40]} 9. e4 {[%emt 0:02:26]} c6 {[%emt 0:01:07]} 10. Be3 {[%emt 0:04:57]} Re8 {[%emt 0:00:58]} 11. Qc2 {[%emt 0:01:58]} Qe7 {[%emt 0:07:04]} 12. Rfe1 {[%emt 0:03:52]} exd4 {[%emt 0:05:14]} 13. Bxd4 {[%emt 0:06:14]} Nf8 {[%emt 0:03:22]} 14. Rad1 {[%emt 0:09:15]} Ne6 {[%emt 0:02:47]} 15. Be3 {[%emt 0:01:17]} Kh7 {[%emt 0:05:33]} 16. Qd2 {[%emt 0:09:48]} Bf8 {[%emt 0:00:22]} 17. b3 {[%emt 0:05:27]} Nd7 {[%emt 0:07:07]} 18. Nd5 {[%emt 0:11:29]} Qd8 {[%emt 0:04:50]} 19. Nf4 {[%emt 0:00:06]} Ng5 {[%emt 0:03:44]} 20. Nxg5+ {[%emt 0:01:17]} hxg5 {[%emt 0:00:06]} 21. Nd3 {[%emt 0:03:26]} Be7 {[%emt 0:03:07]} 22. c5 {[%emt 0:03:20]} Nxc5 {[%emt 0:05:06]} 23. Nxc5 {[%emt 0:09:02]} dxc5 {[%emt 0:00:06]} 24. Qc1 {[%emt 0:01:55]} Qa5 {[%emt 0:00:42]} 25. Re2 {[%emt 0:03:01]} g4 {[%emt 0:01:10]} 26. hxg4 {[%emt 0:00:21]} Bxg4 {[%emt 0:00:06]} 27. f3 {[%emt 0:00:01]} Be6 {[%emt 0:00:08]} 28. Bf1 {[%emt 0:00:26]} Bf8 {[%emt 0:05:19]} 29. Rh2+ {[%emt 0:04:10]} Kg8 {[%emt 0:00:08]} 30. Bc4 {[%emt 0:00:43]} Rad8 {[%emt 0:38:36]} 1/2-1/2